[Event "MČR družstev mladších žáků 2024"]
[Site "Harrachov, Czech Republic"]
[Date "2024.06.14"]
[Round "1.13"]
[White "Cerny Rodan"]
[Black "Policar Martin"]
[Result "0-1"]
[TimeControl "25+10"]
[WhiteFideId "23746165"]
[BlackFideId "23734868"]
[WhiteElo "1299"]
[BlackElo "1646"]

1. e4 {[%emt 00:12:56]} c5 {[%emt 00:00:02]} 2. Nf3 {[%emt 00:00:15]} Nf6
{[%emt 00:00:03]} 3. Nc3 {[%emt 00:00:27]} d5 {[%emt 00:00:03]} 4. exd5 {[%emt
00:00:53]} Nxd5 {[%emt 00:00:05]} 5. Nxd5 {[%emt 00:00:24]} Qxd5 {[%emt
00:00:06]} 6. b3 {[%clk 00:23:57]} {[%emt 00:00:14]} Nc6 {[%clk 00:25:11]}
{[%emt 00:00:41]} 7. Bb2 {[%clk 00:23:19]} {[%emt 00:00:48]} e5 {[%clk
00:24:36]} {[%emt 00:00:44]} 8. Bb5 {[%clk 00:19:24]} {[%emt 00:04:05]} Bd6
{[%clk 00:23:54]} {[%emt 00:00:51]} 9. O-O {[%clk 00:19:13]} {[%emt 00:00:21]}
e4 {[%clk 00:20:53]} {[%emt 00:03:12]} 10. Bc4 {[%clk 00:17:06]} {[%emt
00:02:18]} Qf5 {[%clk 00:16:49]} {[%emt 00:04:13]} 11. Qe2 {[%clk 00:15:54]}
{[%emt 00:01:22]} O-O {[%clk 00:16:33]} {[%emt 00:00:26]} 12. Nh4 {[%clk
00:15:45]} {[%emt 00:00:18]} Qg4 {[%clk 00:12:19]} {[%emt 00:04:25]} 13. Qxg4
{[%clk 00:15:39]} {[%emt 00:00:16]} Bxg4 {[%clk 00:12:27]} {[%emt 00:00:03]} 14.
f3 {[%clk 00:15:27]} {[%emt 00:00:21]} exf3 {[%clk 00:12:33]} {[%emt 00:00:03]}
15. Nxf3 {[%clk 00:15:34]} {[%emt 00:00:04]} Rad8 {[%clk 00:12:00]} {[%emt
00:00:43]} 16. Ng5 {[%clk 00:14:42]} {[%emt 00:01:02]} Bh5 {[%clk 00:10:34]}
{[%emt 00:01:37]} 17. Rae1 {[%clk 00:14:17]} {[%emt 00:00:34]} Bg6 {[%clk
00:07:55]} {[%emt 00:02:50]} 18. d3 {[%clk 00:08:44]} {[%emt 00:05:44]} h6
{[%clk 00:07:26]} {[%emt 00:00:39]} 19. Ne4 {[%clk 00:08:19]} {[%emt 00:00:34]}
Be7 {[%clk 00:05:57]} {[%emt 00:01:39]} 20. a4 {[%clk 00:05:38]} {[%emt
00:02:51]} Na5 {[%clk 00:05:24]} {[%emt 00:00:43]} 21. Nd2 {[%clk 00:03:37]}
{[%emt 00:02:10]} Bg5 {[%clk 00:04:48]} {[%emt 00:00:45]} 22. Ne4 {[%clk
00:03:04]} {[%emt 00:00:44]} Nxc4 {[%clk 00:04:40]} {[%emt 00:00:19]} 23. bxc4
{[%clk 00:03:11]} {[%emt 00:00:03]} Bxe4 {[%clk 00:03:05]} {[%emt 00:01:44]} 24.
Rxe4 {[%clk 00:03:17]} {[%emt 00:00:04]} Rfe8 {[%clk 00:03:12]} {[%emt
00:00:04]} 25. Rfe1 {[%clk 00:03:10]} {[%emt 00:00:17]} Rxe4 {[%clk 00:03:12]}
{[%emt 00:00:10]} 26. Rxe4 {[%clk 00:03:17]} {[%emt 00:00:02]} Rd6 {[%clk
00:02:38]} {[%emt 00:00:45]} 27. Re5 {[%clk 00:02:52]} {[%emt 00:00:35]} Ra6
{[%clk 00:02:01]} {[%emt 00:00:46]} 28. h4 {[%clk 00:01:57]} {[%emt 00:01:05]}
Bf4 {[%clk 00:01:09]} {[%emt 00:01:02]} 29. Re4 {[%clk 00:01:46]} {[%emt
00:00:21]} Bg3 {[%clk 00:01:07]} {[%emt 00:00:12]} 30. Rg4 {[%clk 00:01:54]}
{[%emt 00:00:02]} Rg6 {[%clk 00:00:51]} {[%emt 00:00:26]} 31. Re4 {[%clk
00:01:33]} {[%emt 00:00:32]} Rb6 {[%clk 00:00:45]} {[%emt 00:00:16]} 32. Rg4
{[%clk 00:01:00]} {[%emt 00:00:43]} Rxb2 {[%clk 00:00:38]} {[%emt 00:00:17]} 33.
Rxg3 {[%clk 00:01:09]} {[%emt 00:00:02]} Rxc2 {[%clk 00:00:45]} {[%emt
00:00:02]} 34. Re3 {[%clk 00:00:46]} {[%emt 00:00:33]} Kf8 {[%clk 00:00:39]}
{[%emt 00:00:16]} 35. Re5 {[%clk 00:00:44]} {[%emt 00:00:12]} b6 {[%clk
00:00:46]} {[%emt 00:00:04]} 36. a5 {[%clk 00:00:52]} Rd2 {[%clk 00:00:29]}
{[%emt 00:00:27]} 37. Rd5 {[%clk 00:00:51]} {[%emt 00:00:12]} Ke7 {[%clk
00:00:36]} {[%emt 00:00:02]} 38. g4 {[%clk 00:00:49]} {[%emt 00:00:11]} Ke6
{[%clk 00:00:25]} {[%emt 00:00:22]} 39. Kf1 {[%clk 00:00:52]} {[%emt 00:00:07]}
Rh2 {[%clk 00:00:20]} {[%emt 00:00:15]} 40. h5 {[%clk 00:01:00]} {[%emt
00:00:02]} Rh4 {[%clk 00:00:26]} {[%emt 00:00:04]} 41. d4 {[%clk 00:00:53]}
{[%emt 00:00:17]} Rxg4 {[%clk 00:00:25]} {[%emt 00:00:11]} 42. dxc5 {[%clk
00:01:00]} {[%emt 00:00:03]} Rxc4 {[%clk 00:00:22]} {[%emt 00:00:13]} 43. Rd6+
{[%clk 00:00:59]} {[%emt 00:00:11]} Ke5 {[%clk 00:00:31]} {[%emt 00:00:01]} 44.
axb6 {[%clk 00:01:01]} {[%emt 00:00:09]} axb6 {[%clk 00:00:39]} {[%emt
00:00:02]} 45. Rxb6 {[%clk 00:01:01]} {[%emt 00:00:09]} Rxc5 {[%clk 00:00:47]}
{[%emt 00:00:02]} 46. Rb4 {[%clk 00:00:58]} {[%emt 00:00:13]} Kf6 {[%clk
00:00:54]} {[%emt 00:00:03]} 47. Kg2 {[%clk 00:00:39]} {[%emt 00:00:29]} Rxh5
{[%clk 00:01:01]} {[%emt 00:00:03]} 48. Rb6+ {[%clk 00:00:48]} {[%emt
00:00:02]} Kg5 {[%clk 00:01:07]} {[%emt 00:00:04]} 49. Rb5+ {[%clk 00:00:56]}
{[%emt 00:00:02]} Kg6 {[%clk 00:01:16]} {[%emt 00:00:01]} 50. Rb6+ {[%clk
00:01:05]} {[%emt 00:00:01]} f6 {[%clk 00:01:25]} 51. Kg3 {[%clk 00:01:01]}
{[%emt 00:00:13]} Rc5 {[%clk 00:01:32]} {[%emt 00:00:03]} 52. Rb7 {[%clk
00:00:50]} {[%emt 00:00:21]} h5 {[%clk 00:01:39]} {[%emt 00:00:02]} 53. Kh4
{[%clk 00:00:44]} {[%emt 00:00:17]} Kh6 {[%clk 00:01:42]} {[%emt 00:00:07]} 54.
Kg3 {[%clk 00:00:30]} {[%emt 00:00:24]} g6 {[%clk 00:01:42]} {[%emt 00:00:10]}
55. Kf4 {[%clk 00:00:36]} {[%emt 00:00:04]} Rc4+ {[%clk 00:01:50]} {[%emt
00:00:02]} 56. Kg3 {[%clk 00:00:43]} {[%emt 00:00:02]} Kg5 {[%clk 00:01:58]}
{[%emt 00:00:02]} 57. Rb5+ {[%clk 00:00:52]} {[%emt 00:00:01]} f5 {[%clk
00:02:07]} {[%emt 00:00:02]} 58. Rb3 {[%clk 00:00:54]} {[%emt 00:00:08]} h4+
{[%clk 00:02:15]} {[%emt 00:00:02]} 59. Kf3 {[%clk 00:00:49]} {[%emt 00:00:14]}
Rg4 {[%clk 00:02:21]} {[%emt 00:00:04]} 60. Kf2 {[%clk 00:00:30]} {[%emt
00:00:29]} Kh5 {[%clk 00:02:23]} {[%emt 00:00:08]} 61. Ra3 {[%clk 00:00:29]}
{[%emt 00:00:12]} Rf4+ {[%clk 00:02:28]} {[%emt 00:00:05]} 62. Kg2 {[%clk
00:00:37]} {[%emt 00:00:01]} g5 {[%clk 00:02:33]} {[%emt 00:00:05]} 63. Ra8
{[%clk 00:00:25]} {[%emt 00:00:22]} Kg4 {[%clk 00:02:39]} {[%emt 00:00:03]} 64.
Ra3 {[%clk 00:00:32]} {[%emt 00:00:04]} h3+ {[%clk 00:02:43]} {[%emt 00:00:06]}
65. Kg1 {[%clk 00:00:32]} {[%emt 00:00:10]} Rf3 {[%clk 00:02:46]} {[%emt
00:00:06]} 66. Ra4+ {[%clk 00:00:31]} {[%emt 00:00:12]} Kg3 {[%clk 00:02:54]}
{[%emt 00:00:01]} 67. Ra1 {[%clk 00:00:22]} {[%emt 00:00:20]} Re3 {[%clk
00:02:55]} {[%emt 00:00:09]} 68. Kh1 {[%clk 00:00:20]} {[%emt 00:00:12]} f4
{[%clk 00:02:59]} {[%emt 00:00:06]} 0-1



[ePGN "0.1;DGT LiveChess/2.2.6"]

[Event "MČR družstev mladších žáků 2024"]
[Site "Harrachov, Czech Republic"]
[Date "2024.06.14"]
[Round "1.14"]
[White "Sudrich Radek"]
[Black "Lutskiy Mikhail"]
[Result "1-0"]
[TimeControl "25+10"]
[WhiteFideId "23734361"]
[BlackFideId "23744308"]
[WhiteElo "1470"]
[BlackElo "1446"]

1. d4 {[%clk 00:25:18]} {[%emt 00:00:02]} Nf6 {[%clk 00:25:16]} {[%emt
00:00:05]} 2. c4 {[%clk 00:25:27]} {[%emt 00:00:02]} d5 {[%clk 00:25:21]}
{[%emt 00:00:05]} 3. Nc3 {[%clk 00:25:33]} {[%emt 00:00:03]} e6 {[%clk
00:25:29]} {[%emt 00:00:01]} 4. Nf3 {[%clk 00:25:39]} {[%emt 00:00:05]} c6
{[%clk 00:25:35]} {[%emt 00:00:04]} 5. Bg5 {[%clk 00:25:46]} {[%emt 00:00:03]}
h6 {[%clk 00:25:42]} {[%emt 00:00:03]} 6. Bh4 {[%clk 00:25:50]} {[%emt
00:00:06]} Nbd7 {[%clk 00:25:43]} {[%emt 00:00:09]} 7. e3 {[%clk 00:25:56]}
{[%emt 00:00:04]} Be7 {[%clk 00:25:48]} {[%emt 00:00:05]} 8. cxd5 {[%clk
00:25:43]} {[%emt 00:00:24]} exd5 {[%clk 00:25:55]} {[%emt 00:00:03]} 9. Bd3
{[%clk 00:25:48]} {[%emt 00:00:04]} O-O {[%clk 00:25:58]} {[%emt 00:00:07]} 10.
Qc2 {[%clk 00:25:51]} {[%emt 00:00:08]} Re8 {[%clk 00:25:52]} {[%emt 00:00:16]}
11. O-O {[%clk 00:25:46]} {[%emt 00:00:15]} b5 {[%clk 00:25:13]} {[%emt
00:00:49]} 12. Bg3 {[%clk 00:25:48]} {[%emt 00:00:08]} Nb6 {[%clk 00:24:26]}
{[%emt 00:00:56]} 13. Ne5 {[%clk 00:25:53]} {[%emt 00:00:05]} Bd7 {[%clk
00:24:23]} {[%emt 00:00:12]} 14. a3 {[%clk 00:25:20]} {[%emt 00:00:44]} Bd6
{[%clk 00:24:04]} {[%emt 00:00:27]} 15. Nxf7 {[%clk 00:25:28]} {[%emt
00:00:04]} Kxf7 {[%clk 00:24:05]} {[%emt 00:00:08]} 16. Bxd6 {[%clk 00:25:37]}
{[%emt 00:00:01]} Kg8 {[%clk 00:23:56]} {[%emt 00:00:19]} 17. Be5 {[%clk
00:25:35]} {[%emt 00:00:12]} Be6 {[%clk 00:23:43]} {[%emt 00:00:20]} 18. a4
{[%clk 00:25:04]} {[%emt 00:00:43]} a6 {[%clk 00:23:05]} {[%emt 00:00:48]} 19.
axb5 {[%clk 00:25:07]} {[%emt 00:00:06]} cxb5 {[%clk 00:22:49]} {[%emt
00:00:26]} 20. e4 {[%clk 00:24:44]} {[%emt 00:00:34]} dxe4 {[%clk 00:19:55]}
{[%emt 00:03:04]} 21. Nxe4 {[%clk 00:24:50]} {[%emt 00:00:04]} Nxe4 {[%clk
00:19:15]} {[%emt 00:00:50]} 22. Bxe4 {[%clk 00:24:58]} {[%emt 00:00:02]} Rc8
{[%clk 00:19:16]} {[%emt 00:00:09]} 23. Bh7+ {[%clk 00:24:44]} {[%emt
00:00:24]} Kh8 {[%clk 00:18:56]} {[%emt 00:00:30]} 24. Qg6 {[%clk 00:24:50]}
{[%emt 00:00:04]} Qe7 {[%clk 00:17:25]} {[%emt 00:01:41]} 25. Qxh6 {[%clk
00:24:53]} {[%emt 00:00:07]} Bc4 {[%clk 00:15:05]} {[%emt 00:02:27]} 26. Bg6+
{[%clk 00:25:00]} {[%emt 00:00:06]} Kg8 {[%clk 00:15:13]} {[%emt 00:00:02]} 27.
Qh7+ {[%clk 00:25:09]} {[%emt 00:00:01]} Kf8 {[%clk 00:15:22]} {[%emt
00:00:01]} 28. Qh8+ {[%clk 00:25:11]} {[%emt 00:00:07]} Bg8 {[%clk 00:15:30]}
{[%emt 00:00:02]} 29. Bxe8 {[%clk 00:25:16]} {[%emt 00:00:06]} Rxe8 {[%clk
00:15:24]} {[%emt 00:00:16]} 30. Ra3 {[%clk 00:25:20]} {[%emt 00:00:06]} Kf7
{[%clk 00:14:58]} {[%emt 00:00:37]} 31. Qxg7+ {[%clk 00:25:20]} {[%emt
00:00:09]} Ke6 {[%clk 00:15:07]} 32. Qg6+ {[%clk 00:25:27]} {[%emt 00:00:04]}
Kd7 {[%clk 00:15:10]} {[%emt 00:00:06]} 33. Qxb6 {[%clk 00:25:32]} {[%emt
00:00:06]} Bd5 {[%clk 00:15:01]} {[%emt 00:00:19]} 34. Rc3 {[%clk 00:25:40]}
{[%emt 00:00:02]} Bc4 {[%clk 00:14:31]} {[%emt 00:00:41]} 35. Qc7+ {[%clk
00:25:47]} {[%emt 00:00:03]} Ke6 {[%clk 00:14:37]} {[%emt 00:00:03]} 36. Qxe7+
{[%clk 00:25:51]} {[%emt 00:00:06]} Rxe7 {[%clk 00:14:46]} {[%emt 00:00:01]} 37.
Ra1 {[%clk 00:25:54]} {[%emt 00:00:07]} Ra7 {[%clk 00:14:38]} {[%emt 00:00:18]}
38. f4 {[%clk 00:25:54]} {[%emt 00:00:11]} a5 {[%clk 00:14:46]} {[%emt
00:00:02]} 39. b3 {[%clk 00:25:52]} {[%emt 00:00:12]} Bd5 {[%clk 00:14:53]}
{[%emt 00:00:03]} 40. Rc5 {[%clk 00:25:56]} {[%emt 00:00:06]} Bxb3 {[%clk
00:14:50]} {[%emt 00:00:13]} 41. Rxb5 {[%clk 00:26:04]} {[%emt 00:00:02]} Bd5
{[%clk 00:14:52]} {[%emt 00:00:08]} 42. Raxa5 {[%clk 00:26:12]} {[%emt
00:00:02]} Rd7 {[%clk 00:14:58]} {[%emt 00:00:03]} 43. Ra6+ {[%clk 00:26:19]}
{[%emt 00:00:04]} Kf5 {[%clk 00:15:06]} {[%emt 00:00:02]} 44. Rd6 {[%clk
00:26:22]} {[%emt 00:00:07]} Rxd6 {[%clk 00:15:11]} {[%emt 00:00:05]} 45. Bxd6
{[%clk 00:26:30]} {[%emt 00:00:02]} Ke4 {[%clk 00:15:20]} {[%emt 00:00:01]} 46.
Rxd5 {[%clk 00:26:37]} {[%emt 00:00:03]} Kxd5 {[%clk 00:15:29]} {[%emt
00:00:01]} 47. Be5 {[%clk 00:26:45]} {[%emt 00:00:01]} Ke6 {[%clk 00:15:37]}
{[%emt 00:00:02]} 48. Kf2 {[%clk 00:26:54]} {[%emt 00:00:01]} Kf5 {[%clk
00:15:46]} 49. d5 {[%clk 00:27:01]} {[%emt 00:00:02]} Kg6 {[%clk 00:15:49]}
{[%emt 00:00:05]} 50. Ke3 {[%clk 00:27:09]} {[%emt 00:00:04]} Kf5 {[%clk
00:15:58]} {[%emt 00:00:01]} 51. Kd4 {[%clk 00:27:17]} {[%emt 00:00:03]} Kg6
{[%clk 00:16:07]} {[%emt 00:00:01]} 52. f5+ Kxf5 {[%clk 00:16:15]} 53. g4+
{[%clk 00:27:34]} {[%emt 00:00:01]} Kg6 {[%clk 00:16:23]} {[%emt 00:00:02]} 54.
Kc5 {[%clk 00:27:41]} {[%emt 00:00:03]} Kf7 {[%clk 00:16:32]} 55. d6 {[%clk
00:27:47]} {[%emt 00:00:05]} Ke8 {[%clk 00:16:38]} {[%emt 00:00:01]} 56. Kc6
{[%clk 00:27:54]} {[%emt 00:00:06]} Kf7 {[%clk 00:16:35]} {[%emt 00:00:12]} 57.
d7 {[%clk 00:28:02]} {[%emt 00:00:04]} Ke6 {[%clk 00:16:42]} {[%emt 00:00:03]}
58. d8=Q {[%clk 00:28:08]} {[%emt 00:00:04]} Kxe5 {[%clk 00:16:50]} {[%emt
00:00:01]} 59. Qe7+ {[%clk 00:28:14]} {[%emt 00:00:04]} Kf4 {[%clk 00:16:59]}
{[%emt 00:00:01]} 60. Kd5 {[%clk 00:28:23]} {[%emt 00:00:02]} Kxg4 {[%clk
00:17:05]} {[%emt 00:00:03]} 61. Qf6 {[%clk 00:28:31]} {[%emt 00:00:02]} Kh3
{[%clk 00:17:14]} 62. Ke4 {[%clk 00:28:40]} {[%emt 00:00:01]} Kxh2 {[%clk
00:17:22]} {[%emt 00:00:02]} 63. Qg5 {[%clk 00:28:49]} {[%emt 00:00:01]} Kh1
{[%clk 00:17:28]} {[%emt 00:00:04]} 64. Kf3 {[%clk 00:28:58]} {[%emt 00:00:02]}
Kh2 {[%clk 00:17:36]} {[%emt 00:00:02]} 65. Qg2+ {[%clk 00:29:07]} 1-0



[ePGN "0.1;DGT LiveChess/2.2.6"]

[Event "MČR družstev mladších žáků 2024"]
[Site "Harrachov, Czech Republic"]
[Date "2024.06.14"]
[Round "1.15"]
[White "Cerny Ren"]
[Black "Moravec Rene"]
[Result "1/2-1/2"]
[TimeControl "25+10"]
[WhiteFideId "23754559"]
[BlackFideId "23745274"]
[WhiteElo "1317"]
[BlackElo "1295"]

1. e4 {[%clk 00:25:16]} {[%emt 00:00:04]} c5 {[%clk 00:25:19]} {[%emt
00:00:01]} 2. c3 {[%clk 00:25:10]} {[%emt 00:00:16]} d6 {[%clk 00:24:53]}
{[%emt 00:00:37]} 3. d4 {[%clk 00:25:17]} {[%emt 00:00:02]} cxd4 {[%clk
00:25:00]} {[%emt 00:00:02]} 4. cxd4 {[%clk 00:25:22]} {[%emt 00:00:06]} Nf6
{[%clk 00:25:06]} {[%emt 00:00:04]} 5. Nc3 {[%clk 00:25:14]} {[%emt 00:00:17]}
d5 {[%clk 00:25:09]} {[%emt 00:00:07]} 6. e5 {[%clk 00:24:52]} {[%emt
00:00:32]} Ng4 {[%clk 00:24:32]} {[%emt 00:00:44]} 7. h3 {[%clk 00:24:28]}
{[%emt 00:00:36]} Nh6 {[%clk 00:24:40]} {[%emt 00:00:02]} 8. Nf3 {[%clk
00:24:22]} {[%emt 00:00:17]} g6 {[%clk 00:24:15]} {[%emt 00:00:35]} 9. Bd3
{[%clk 00:24:01]} {[%emt 00:00:30]} Bg7 {[%clk 00:24:03]} {[%emt 00:00:23]} 10.
Be3 {[%clk 00:23:37]} {[%emt 00:00:34]} O-O {[%clk 00:23:41]} {[%emt 00:00:31]}
11. Rc1 {[%clk 00:23:21]} {[%emt 00:00:27]} Nf5 {[%clk 00:23:48]} {[%emt
00:00:03]} 12. Bxf5 {[%clk 00:22:46]} {[%emt 00:00:45]} Bxf5 {[%clk 00:23:55]}
{[%emt 00:00:04]} 13. Qb3 {[%clk 00:22:04]} {[%emt 00:00:52]} e6 {[%clk
00:22:40]} {[%emt 00:01:25]} 14. Qxb7 {[%clk 00:20:35]} {[%emt 00:01:39]} Nd7
{[%clk 00:22:34]} {[%emt 00:00:16]} 15. Qa6 {[%clk 00:19:51]} {[%emt 00:00:53]}
Rb8 {[%clk 00:21:28]} {[%emt 00:01:15]} 16. Qxa7 {[%clk 00:18:34]} {[%emt
00:01:29]} Rxb2 {[%clk 00:21:22]} {[%emt 00:00:17]} 17. O-O {[%clk 00:18:01]}
{[%emt 00:00:42]} Nb6 {[%clk 00:17:43]} {[%emt 00:03:49]} 18. Nd2 {[%clk
00:13:23]} {[%emt 00:04:47]} Qh4 {[%clk 00:11:58]} {[%emt 00:05:47]} 19. Qa3
{[%clk 00:11:45]} {[%emt 00:01:56]} Rc2 {[%clk 00:11:39]} {[%emt 00:00:26]} 20.
Rxc2 {[%clk 00:11:25]} {[%emt 00:00:33]} Bxc2 {[%clk 00:11:27]} {[%emt
00:00:21]} 21. Nf3 {[%clk 00:10:00]} {[%emt 00:01:36]} Qd8 {[%clk 00:10:33]}
{[%emt 00:00:54]} 22. Qb2 {[%clk 00:08:38]} {[%emt 00:01:41]} Bd3 {[%clk
00:09:05]} {[%emt 00:01:37]} 23. Rd1 {[%clk 00:08:29]} {[%emt 00:00:20]} Be4
{[%clk 00:08:37]} {[%emt 00:00:38]} 24. Nxe4 {[%clk 00:07:27]} {[%emt
00:01:13]} dxe4 {[%clk 00:08:45]} {[%emt 00:00:02]} 25. Nd2 {[%clk 00:07:16]}
{[%emt 00:00:20]} Nd5 {[%clk 00:08:18]} {[%emt 00:00:36]} 26. Nxe4 {[%clk
00:06:57]} {[%emt 00:00:30]} Nxe3 {[%clk 00:08:27]} {[%emt 00:00:02]} 27. fxe3
{[%clk 00:07:03]} {[%emt 00:00:02]} Qd5 {[%clk 00:07:50]} {[%emt 00:00:45]} 28.
Nd6 {[%clk 00:06:21]} {[%emt 00:00:54]} Bxe5 {[%clk 00:06:04]} {[%emt
00:01:56]} 29. Nc4 {[%clk 00:03:43]} {[%emt 00:02:48]} Qxc4 {[%clk 00:05:30]}
{[%emt 00:00:43]} 30. dxe5 {[%clk 00:03:45]} {[%emt 00:00:09]} Qe4 {[%clk
00:04:14]} {[%emt 00:01:18]} 31. Qd4 {[%emt 00:00:32]} Qxd4 {[%clk 00:03:36]}
{[%emt 00:00:37]} 32. exd4 {[%clk 00:03:48]} {[%emt 00:00:03]} Ra8 {[%clk
00:03:44]} {[%emt 00:00:02]} 33. Rd2 {[%clk 00:03:51]} {[%emt 00:00:08]} Ra3
{[%clk 00:03:22]} {[%emt 00:00:30]} 34. Kf2 {[%clk 00:03:56]} {[%emt 00:00:06]}
Kf8 {[%clk 00:03:24]} {[%emt 00:00:06]} 35. Rc2 {[%clk 00:03:14]} {[%emt
00:00:55]} Rd3 {[%clk 00:02:34]} {[%emt 00:00:58]} 36. Ke2 {[%clk 00:03:07]}
{[%emt 00:00:19]} Rxd4 {[%clk 00:02:28]} {[%emt 00:00:17]} 37. Ke3 {[%clk
00:03:10]} {[%emt 00:00:06]} Ra4 {[%clk 00:02:14]} {[%emt 00:00:21]} 38. Kd3
{[%clk 00:03:04]} {[%emt 00:00:18]} Ke7 {[%clk 00:02:08]} {[%emt 00:00:15]} 39.
Re2 {[%clk 00:03:02]} {[%emt 00:00:13]} Kd7 {[%clk 00:01:47]} {[%emt 00:00:31]}
40. Kc3 {[%clk 00:03:09]} {[%emt 00:00:03]} Kc6 {[%clk 00:01:48]} {[%emt
00:00:07]} 41. Kb3 {[%clk 00:03:11]} {[%emt 00:00:10]} Ra7 {[%clk 00:01:55]}
{[%emt 00:00:01]} 42. Kc4 {[%clk 00:03:09]} {[%emt 00:00:14]} Ra3 {[%clk
00:01:49]} {[%emt 00:00:11]} 43. Kb4 {[%clk 00:03:17]} {[%emt 00:00:07]} Ra7
{[%clk 00:01:52]} {[%emt 00:00:07]} 44. a4 {[%clk 00:02:50]} {[%emt 00:00:37]}
Kb6 {[%clk 00:01:57]} {[%emt 00:00:02]} 45. Rd2 {[%clk 00:02:54]} {[%emt
00:00:09]} Kc6 {[%clk 00:01:39]} {[%emt 00:00:28]} 46. Rd6+ {[%clk 00:02:46]}
{[%emt 00:00:18]} Kc7 {[%clk 00:01:40]} {[%emt 00:00:10]} 47. Rd2 {[%clk
00:02:32]} {[%emt 00:00:24]} Rb7+ {[%clk 00:01:32]} {[%emt 00:00:18]} 48. Kc5
{[%clk 00:02:36]} {[%emt 00:00:06]} Rb3 {[%clk 00:01:27]} {[%emt 00:00:15]} 49.
a5 {[%clk 00:02:19]} {[%emt 00:00:28]} Ra3 {[%clk 00:01:03]} {[%emt 00:00:34]}
50. Kb4 {[%clk 00:02:20]} {[%emt 00:00:08]} Ra1 {[%clk 00:01:08]} {[%emt
00:00:04]} 51. Kb5 {[%clk 00:02:09]} {[%emt 00:00:21]} Rb1+ {[%clk 00:01:10]}
{[%emt 00:00:07]} 52. Kc5 {[%clk 00:01:58]} {[%emt 00:00:23]} 1/2-1/2



[ePGN "0.1;DGT LiveChess/2.2.6"]

[Event "MČR družstev mladších žáků 2024"]
[Site "Harrachov, Czech Republic"]
[Date "2024.06.14"]
[Round "1.16"]
[White "Sevcikova Terezie"]
[Black "Gao Tianle"]
[Result "1-0"]
[TimeControl "25+10"]
[WhiteFideId "23766425"]
[BlackFideId "23739924"]
[WhiteElo "1447"]
[BlackElo "1120"]

1. d4 {[%clk 00:25:14]} {[%emt 00:00:05]} d5 {[%clk 00:25:19]} {[%emt
00:00:02]} 2. Bf4 {[%clk 00:25:22]} {[%emt 00:00:01]} Nf6 {[%clk 00:25:27]}
{[%emt 00:00:03]} 3. e3 {[%clk 00:25:25]} {[%emt 00:00:08]} e6 {[%clk
00:25:31]} {[%emt 00:00:05]} 4. c3 {[%clk 00:25:31]} {[%emt 00:00:04]} c5
{[%clk 00:25:38]} {[%emt 00:00:03]} 5. Nf3 {[%clk 00:25:36]} {[%emt 00:00:04]}
Nc6 {[%clk 00:25:46]} {[%emt 00:00:03]} 6. Bb5 {[%clk 00:25:15]} {[%emt
00:00:30]} Bd7 {[%clk 00:24:59]} {[%emt 00:00:57]} 7. Nbd2 {[%clk 00:24:48]}
{[%emt 00:00:36]} a6 {[%clk 00:24:05]} {[%emt 00:01:06]} 8. Bxc6 {[%clk
00:24:17]} {[%emt 00:00:41]} Bxc6 {[%clk 00:24:12]} {[%emt 00:00:04]} 9. O-O
{[%clk 00:24:04]} {[%emt 00:00:22]} Qb6 {[%clk 00:22:17]} {[%emt 00:02:04]} 10.
Qb3 {[%clk 00:23:50]} {[%emt 00:00:22]} Qxb3 {[%clk 00:21:46]} {[%emt
00:00:44]} 11. Nxb3 {[%clk 00:23:57]} {[%emt 00:00:03]} b6 {[%clk 00:19:10]}
{[%emt 00:02:46]} 12. a4 {[%clk 00:21:32]} {[%emt 00:02:34]} c4 {[%clk
00:18:11]} {[%emt 00:01:10]} 13. Nbd2 {[%clk 00:21:30]} {[%emt 00:00:10]} Be7
{[%clk 00:18:01]} {[%emt 00:00:22]} 14. Ne5 {[%clk 00:20:31]} {[%emt 00:01:09]}
Rc8 {[%clk 00:16:00]} {[%emt 00:02:10]} 15. Nxc6 {[%clk 00:19:15]} {[%emt
00:01:27]} Rxc6 {[%clk 00:15:59]} {[%emt 00:00:11]} 16. Nf3 {[%clk 00:19:22]}
{[%emt 00:00:03]} O-O {[%clk 00:15:49]} {[%emt 00:00:20]} 17. Ne5 {[%clk
00:19:13]} {[%emt 00:00:19]} Rcc8 {[%clk 00:15:41]} {[%emt 00:00:18]} 18. Bg5
{[%clk 00:18:55]} {[%emt 00:00:28]} Rfe8 {[%clk 00:15:09]} {[%emt 00:00:41]} 19.
h3 {[%clk 00:15:35]} {[%emt 00:03:30]} h6 {[%clk 00:14:32]} {[%emt 00:00:48]}
20. Bxf6 {[%clk 00:15:24]} {[%emt 00:00:20]} Bxf6 {[%clk 00:12:29]} {[%emt
00:02:14]} 21. Nf3 {[%clk 00:15:12]} {[%emt 00:00:22]} a5 {[%clk 00:09:24]}
{[%emt 00:03:16]} 22. Rfe1 {[%clk 00:14:29]} {[%emt 00:00:52]} Rb8 {[%clk
00:08:51]} {[%emt 00:00:44]} 23. e4 {[%clk 00:14:30]} {[%emt 00:00:10]} dxe4
{[%clk 00:08:22]} {[%emt 00:00:39]} 24. Rxe4 {[%clk 00:14:35]} {[%emt
00:00:04]} Rbc8 {[%clk 00:05:49]} {[%emt 00:02:45]} 25. Rae1 {[%clk 00:14:20]}
{[%emt 00:00:23]} Rb8 {[%clk 00:05:27]} {[%emt 00:00:33]} 26. d5 {[%clk
00:14:08]} {[%emt 00:00:23]} b5 {[%clk 00:04:57]} {[%emt 00:00:40]} 27. axb5
{[%clk 00:13:49]} {[%emt 00:00:29]} Rxb5 {[%clk 00:05:01]} {[%emt 00:00:06]} 28.
dxe6 {[%clk 00:13:56]} {[%emt 00:00:03]} Rxe6 {[%clk 00:04:37]} {[%emt
00:00:34]} 29. Rxe6 {[%clk 00:13:09]} {[%emt 00:00:56]} fxe6 {[%clk 00:04:46]}
{[%emt 00:00:02]} 30. Re2 {[%clk 00:13:06]} {[%emt 00:00:12]} Kf7 {[%clk
00:04:14]} {[%emt 00:00:43]} 31. Kh2 {[%clk 00:12:45]} {[%emt 00:00:31]} g6
{[%clk 00:02:59]} {[%emt 00:01:25]} 32. Kg3 {[%clk 00:12:48]} {[%emt 00:00:07]}
Rf5 {[%clk 00:01:56]} {[%emt 00:01:11]} 33. Re4 {[%clk 00:12:27]} {[%emt
00:00:31]} Rc5 {[%clk 00:01:18]} {[%emt 00:00:49]} 34. Nd2 {[%clk 00:12:24]}
{[%emt 00:00:13]} 1-0



[ePGN "0.1;DGT LiveChess/2.2.6"]